fUST/lending_fUST_20240430
["ID","MTS","AMOUNT","RATE_DAILY","PERIOD"]
[324977335,1714488643290,-1480.3276,0.00013699,2]
[324977338,1714488643299,-1480.3276,0.00013699,2]
[324977340,1714488643309,-1480.3276,0.00013699,2]
[324977342,1714488643319,-1480.3276,0.00013699,2]
[324977344,1714488643328,-1480.3276,0.00013699,2]
[324977346,1714488643338,-1480.3276,0.00013699,2]
[324977348,1714488643347,-1480.3276,0.00013699,2]
[324977351,1714488643356,-1480.3276,0.00013699,2]
[324977355,1714488643367,-1480.3276,0.00013699,2]
[324977358,1714488643376,-1480.3276,0.00013699,2]
[324977360,1714488643385,-1480.3276,0.00013699,2]
[324977363,1714488643395,-1480.327598,0.00013699,2]
[324977366,1714488643405,-151.0,0.00013699,2]
[324977368,1714488643417,-151.0,0.00013699,2]
[324977370,1714488643426,-151.0,0.00013699,2]
[324977372,1714488643436,-151.0,0.00013699,2]
[324977374,1714488643445,-151.0,0.00013699,2]
[324977376,1714488643456,-151.0,0.00013699,2]
[324977377,1714488643465,-151.0,0.00013699,2]
[324977380,1714488643475,-151.0,0.00013699,2]
[324977381,1714488643484,-151.0,0.00013699,2]
[324977384,1714488643494,-151.0,0.00013699,2]
[324977386,1714488643504,-151.0,0.00013699,2]
[324977387,1714488643513,-151.0,0.00013699,2]
[324977389,1714488643523,-271.584587,0.00013699,2]
[324977391,1714488643532,-453.173754,0.00013699,2]
[324977394,1714488643542,-453.173754,0.00013699,2]
[324977395,1714488643551,-453.173754,0.00013699,2]
[324977398,1714488643561,-453.173754,0.00013699,2]
[324977400,1714488643570,-453.173754,0.00013699,2]
[324977402,1714488643580,-453.173754,0.00013699,2]
[324977404,1714488643589,-453.173754,0.00013699,2]
[324977406,1714488643598,-453.173754,0.00013699,2]
[324977408,1714488643608,-453.173754,0.00013699,2]
[324977410,1714488643617,-453.173754,0.00013699,2]
[324977412,1714488643627,-453.173754,0.00013699,2]
[324977414,1714488643636,-453.173754,0.00013699,2]
[324977415,1714488643645,-453.173754,0.00013699,2]
[324977417,1714488643655,-453.173754,0.00013699,2]
[324977419,1714488643666,-164.06896854,0.000137,2]
[324977421,1714488643676,-730.70803192,0.000138,2]
[324977423,1714488643685,-151.0,0.00013941,2]
[324977424,1714488643694,-155.56111603,0.00013994,2]
[324977425,1714488643704,-190.38701546,0.00013995,2]
[324977426,1714488643714,-928.69749977,0.00014,2]
[324977427,1714488643724,-151.0,0.00014,2]
[324977428,1714488643733,-151.0,0.00014,2]
[324977429,1714488643742,-1799.99632381,0.00014532,2]
[324977430,1714488643752,-1677.91034586,0.00015,2]
[324977431,1714488643761,-2392.43546351,0.00015,2]
[324977432,1714488643770,-2101.40475036,0.00015,2]
[324977433,1714488643780,-309.58617828,0.00015,2]
[324977434,1714488643789,-939.47409396,0.00015,2]
[324977435,1714488643798,-312.92952009,0.00015,2]
[324977436,1714488643808,-2780.82631177,0.00015,2]
[324977437,1714488643817,-151.0,0.00015,2]
[324977438,1714488643826,-153.453431,0.00015,2]
[324977439,1714488643835,-160.0,0.00015,2]
[324977440,1714488643844,-4455.63767669,0.00015474,2]
[324977441,1714488643853,-320.0,0.00015548,2]
[324977442,1714488643863,-155.1754436,0.00015967,2]
[324977443,1714488643872,-155.30419992,0.00015967,2]
[324977444,1714488643882,-155.31243023,0.00015967,2]
[324977446,1714488643892,-359.5100816,0.00015967,2]
[324977447,1714488643902,-187.08134462,0.00015967,2]
[324977448,1714488643913,-200.01586693,0.00015967,2]
[324977451,1714488643923,-156.76082393,0.00015967,2]
[324977452,1714488643933,-514.30635662,0.00016,2]
[324977454,1714488643943,-18000.02949539,0.00016,2]
[324977457,1714488643953,-480.0,0.00016096,2]
[324977459,1714488643963,-272.83575254,0.000165,2]
[324977461,1714488643972,-155.84746734,0.00016547,2]
[324977463,1714488643981,-155.24172351,0.00016547,2]
[324977464,1714488643991,-154.9901711,0.00016548,2]
[324977467,1714488644002,-2079.0,0.00016548,2]
[324977469,1714488644011,-250.50179526,0.00016548,2]
[324977471,1714488644021,-154.98298826,0.00016548,2]
[324977473,1714488644030,-274.83761181,0.00016549,2]
[324977475,1714488644040,-285.44373816,0.0001655,2]
[324977477,1714488644050,-162.71909432,0.0001655,2]
[324977479,1714488644059,-266.67766271,0.0001655,2]
[324977481,1714488644068,-191.92615988,0.0001655,2]
[324977483,1714488644078,-208.37438676,0.0001655,2]
[324977485,1714488644087,-186.53209164,0.0001655,2]
[324977487,1714488644096,-161.87992514,0.0001655,2]
[324977489,1714488644105,-225.92697873,0.0001655,2]
[324977491,1714488644115,-159.01440202,0.0001655,2]
[324977493,1714488644124,-307.028517,0.0001655,2]
[324977495,1714488644134,-155.86742512,0.0001655,2]
[324977497,1714488644143,-212.22553252,0.0001655,2]
[324977499,1714488644152,-155.42064574,0.0001655,2]
[324977501,1714488644163,-303.81645991,0.0001655,2]
[324977503,1714488644173,-155.0816177,0.0001655,2]
[324977505,1714488644182,-155.62299292,0.00016551,2]
[324977507,1714488644191,-294.08994501,0.00016551,2]
[324977509,1714488644201,-628.29704128,0.00016644,2]
[324977511,1714488644211,-189.3964787,0.00018,2]
[324977513,1714488644221,-3141.91517172,0.00018,7]
[324977515,1714488644230,-202.85160131,0.00018,2]
[324977517,1714488644240,-378.96857532,0.00018146,2]
[324977519,1714488644249,-276.96911954,0.00018147,2]
[324977521,1714488644259,-4455.63767669,0.00018187,2]
[324977523,1714488644268,-603.84859883,0.000185,2]
[324977525,1714488644280,-704.78925614,0.000185,2]
[324977527,1714488644291,-1005.3403541,0.00018739,2]
[324977529,1714488644301,-250.0,0.00018739,2]
[324977532,1714488644311,-201.980854,0.00018889,2]
[324977534,1714488644322,-6148.92964259,0.000189,2]
[324977536,1714488644332,-155.20789439,0.00019,2]
[324977538,1714488644341,-235.95222024,0.00019,2]
[324977540,1714488644351,-7935.4723664,0.00019,2]
[324977542,1714488644362,-948.46578514,0.00019,2]
[324977543,1714488644372,-1799.99632381,0.00019019,2]
[324977545,1714488644382,-500.0,0.00019178,2]
[324977547,1714488644391,-500.0,0.00019178,2]
[324977549,1714488644400,-500.0,0.00019178,2]
[324977551,1714488644410,-500.0,0.00019178,2]
[324977553,1714488644420,-500.0,0.00019178,2]
[324977555,1714488644430,-500.0,0.00019178,2]
[324977558,1714488644439,-241.65315029,0.00019178,2]
[324977560,1714488644450,-365.72896776,0.00019178,2]
[324977561,1714488644460,-512.45781537,0.00019178,2]
[324977564,1714488644470,-500.0,0.00019178,2]
[324977566,1714488644479,-500.0,0.00019178,2]
[324977568,1714488644488,-500.0,0.00019178,2]
[324977570,1714488644497,-500.0,0.00019178,2]
[324977572,1714488644507,-500.0,0.00019178,2]
[324977574,1714488644516,-500.0,0.00019178,2]
[324977576,1714488644525,-500.0,0.00019178,2]
[324977578,1714488644536,-500.0,0.00019178,2]
[324977580,1714488644545,-500.0,0.00019178,2]
[324977582,1714488644555,-500.0,0.00019178,2]
[324977584,1714488644564,-500.0,0.00019178,2]
[324977586,1714488644574,-500.0,0.00019178,2]
[324977588,1714488644584,-500.0,0.00019178,2]
[324977590,1714488644594,-500.0,0.00019178,2]
[324977592,1714488644603,-165.31168112,0.00019178,2]
[324977594,1714488644612,-500.0,0.00019178,2]
[324977596,1714488644622,-500.0,0.00019178,2]
[324977598,1714488644632,-500.0,0.00019178,2]
[324977600,1714488644641,-183.68084576,0.00019178,2]
[324977602,1714488644650,-500.0,0.00019178,2]
[324977604,1714488644660,-232.4717852,0.00019178,2]
[324977606,1714488644670,-500.0,0.00019178,2]
[324977608,1714488644679,-500.0,0.00019178,2]
[324977610,1714488644689,-500.46173256,0.00019178,2]
[324977612,1714488644699,-500.0,0.00019178,2]
[324977614,1714488644708,-500.0,0.00019178,2]
[324977616,1714488644718,-500.0,0.00019178,2]
[324977619,1714488644727,-500.0,0.00019178,2]
[324977621,1714488644737,-500.0,0.00019178,2]
[324977623,1714488644746,-500.86,0.00019178,2]
[324977625,1714488644756,-500.0,0.00019178,2]
[324977627,1714488644766,-345.0733016,0.00019178,2]
[324977629,1714488644775,-500.0,0.00019178,2]
[324977631,1714488644784,-500.0,0.00019178,2]
[324977633,1714488644794,-500.0,0.00019178,2]
[324977635,1714488644803,-500.0,0.00019178,2]
[324977637,1714488644813,-500.0,0.00019178,2]
[324977639,1714488644823,-500.0,0.00019178,2]
[324977641,1714488644832,-500.0,0.00019178,2]
[324977643,1714488644842,-500.0,0.00019178,2]
[324977645,1714488644851,-500.0,0.00019178,2]
[324977647,1714488644861,-500.0,0.00019178,2]
[324977649,1714488644871,-500.0,0.00019178,2]
[324977651,1714488644882,-500.0,0.00019178,2]
[324977653,1714488644892,-500.0,0.00019178,2]
[324977655,1714488644902,-500.0,0.00019178,2]
[324977657,1714488644913,-507.71043504,0.00019178,2]
[324977659,1714488644924,-500.0,0.00019178,2]
[324977661,1714488644934,-500.0,0.00019178,2]
[324977664,1714488644944,-500.0,0.00019178,2]
[324977666,1714488644954,-500.0,0.00019178,2]
[324977668,1714488644963,-500.0,0.00019178,2]
[324977670,1714488644972,-500.0,0.00019178,2]
[324977672,1714488644981,-500.0,0.00019178,2]
[324977674,1714488644991,-500.0,0.00019178,2]
[324977676,1714488645000,-500.0,0.00019178,2]
[324977678,1714488645010,-500.0,0.00019178,2]
[324977680,1714488645020,-500.0,0.00019178,2]
[324977682,1714488645029,-500.0,0.00019178,2]
[324977684,1714488645038,-500.0,0.00019178,2]
[324977686,1714488645048,-500.0,0.00019178,2]
[324977688,1714488645057,-500.0,0.00019178,2]
[324977690,1714488645067,-500.0,0.00019178,2]
[324977692,1714488645076,-500.0,0.00019178,2]
[324977694,1714488645086,-500.0,0.00019178,2]
[324977696,1714488645095,-500.0,0.00019178,2]
[324977698,1714488645105,-500.0,0.00019178,2]
[324977700,1714488645114,-500.0,0.00019178,2]
[324977702,1714488645124,-500.0,0.00019178,2]
[324977704,1714488645133,-500.0,0.00019178,2]
[324977706,1714488645142,-500.0,0.00019178,2]
[324977708,1714488645151,-500.0,0.00019178,2]
[324977710,1714488645161,-500.0,0.00019178,2]
[324977712,1714488645171,-500.0,0.00019178,2]
[324977714,1714488645180,-500.0,0.00019178,2]
[324977716,1714488645190,-473.53712261,0.00019178,2]
[324977718,1714488645200,-500.0,0.00019178,2]
[324977720,1714488645209,-500.0,0.00019178,2]
[324977722,1714488645218,-160.585066,0.00019178,2]
[324977724,1714488645227,-289.617416,0.00019178,2]
[324977726,1714488645236,-289.617416,0.00019178,2]
[324977728,1714488645246,-289.617416,0.00019178,2]
[324977730,1714488645255,-289.617416,0.00019178,2]
[324977732,1714488645265,-289.617416,0.00019178,2]
[324977734,1714488645278,-289.617416,0.00019178,2]
[324977736,1714488645291,-289.617416,0.00019178,2]
[324977738,1714488645300,-289.617416,0.00019178,2]
[324977740,1714488645310,-289.617416,0.00019178,2]
[324977742,1714488645320,-289.617416,0.00019178,2]
[324977744,1714488645329,-289.617416,0.00019178,2]
[324977746,1714488645339,-289.617416,0.00019178,2]
[324977748,1714488645348,-289.617416,0.00019178,2]
[324977750,1714488645360,-289.617416,0.00019178,2]
[324977752,1714488645369,-289.617416,0.00019178,2]
[324977754,1714488645379,-289.617416,0.00019178,2]
[324977756,1714488645388,-289.617416,0.00019178,2]
[324977758,1714488645398,-289.617416,0.00019178,2]
[324977761,1714488645408,-289.617416,0.00019178,2]
[324977763,1714488645420,-289.617414,0.00019178,2]
[324977765,1714488645430,-155.58236345,0.00019799,2]
[324977767,1714488645439,-302.80653186,0.00019897,2]
[324977769,1714488645450,-1547.90345751,0.00019999,2]
[324977771,1714488645459,-1334.59883942,0.0002,2]
[324977773,1714488645469,-329.99389325,0.0002,2]
[324977775,1714488645479,-241.71320654,0.0002,2]
[324977777,1714488645488,-10481.54893926,0.0002,2]
[324977779,1714488645497,-67426.19859378,0.0002,2]
[324977781,1714488645507,-7793.41212495,0.0002,2]
[324977784,1714488645516,-5767.31631135,0.0002,2]
[324977786,1714488645527,-525.07533493,0.0002,4]
[324977788,1714488645537,-165.41143922,0.0002,2]
[324977790,1714488645547,-154.81422293,0.0002,2]
[324977792,1714488645557,-300.07781609,0.0002,2]
[324977794,1714488645566,-2300.74627684,0.0002,5]
[324977796,1714488645577,-287.0,0.0002,2]
[324977798,1714488645587,-154.79876161,0.0002,2]
[324977800,1714488645595,-200.0,0.0002,2]
[324977802,1714488645605,-668.79200452,0.0002007,2]
[324977804,1714488645614,-3000.0,0.00020547,2]
[324977806,1714488645624,-3000.0,0.00020547,2]
[324977808,1714488645634,-3000.0,0.00020547,2]
[324977810,1714488645643,-3000.0,0.00020547,2]
[324977812,1714488645652,-3000.0,0.00020547,2]
[324977814,1714488645662,-2684.07607813,0.00020547,2]
[324977816,1714488645672,-1931.098003,0.00020548,2]
[324977818,1714488645682,-4455.63767669,0.000209,2]
[324977820,1714488645691,-5000.0,0.00021,2]
[324977822,1714488645700,-3387.72625463,0.00021,2]
[324977824,1714488645710,-622.43960023,0.00021073,2]
[324977826,1714488645720,-10000.0,0.00021918,2]
[324977828,1714488645729,-463.72,0.00021918,2]
[324977830,1714488645739,-151.0,0.00021918,2]
[324977832,1714488645748,-250.816963,0.00021918,2]
[324977834,1714488645757,-817.92,0.00021918,2]
[324977836,1714488645767,-1068.03,0.00021918,2]
[324977838,1714488645776,-890.03,0.00021918,2]
[324977840,1714488645785,-741.69,0.00021918,2]
[324977842,1714488645795,-618.07,0.00021918,2]
[324977844,1714488645804,-515.06,0.00021918,2]
[324977846,1714488645814,-189.938894,0.00021918,2]
[324977848,1714488645823,-189.938894,0.00021918,2]
[324977850,1714488645834,-189.938894,0.00021918,2]
[324977852,1714488645843,-189.938894,0.00021918,2]
[324977854,1714488645853,-189.938894,0.00021918,2]
[324977856,1714488645862,-189.938894,0.00021918,2]
[324977858,1714488645872,-189.938894,0.00021918,2]
[324977860,1714488645881,-189.938894,0.00021918,2]
[324977862,1714488645890,-189.938894,0.00021918,2]
[324977864,1714488645900,-189.938894,0.00021918,2]
[324977866,1714488645909,-189.938894,0.00021918,2]
[324977868,1714488645920,-189.938894,0.00021918,2]
[324977870,1714488645930,-189.938894,0.00021918,2]
[324977872,1714488645940,-189.938894,0.00021918,2]
[324977874,1714488645950,-189.938894,0.00021918,2]
[324977876,1714488645960,-189.938894,0.00021918,2]
[324977878,1714488645970,-189.938894,0.00021918,2]
[324977880,1714488645981,-429.22,0.00021918,2]
[324977882,1714488645991,-189.938894,0.00021918,2]
[324977884,1714488646001,-189.938894,0.00021918,2]
[324977886,1714488646011,-189.938885,0.00021918,2]
[324977889,1714488646021,-357.68,0.00021918,2]
[324977891,1714488646032,-298.07,0.00021918,2]
[324977893,1714488646041,-248.39,0.00021918,2]
[324977895,1714488646052,-206.99,0.00021918,2]
[324977897,1714488646062,-172.49,0.00021918,2]
[324977899,1714488646072,-862.5,0.00021918,2]
[324977901,1714488646082,-325.81728988,0.00022,2]
[324977903,1714488646092,-305.6041892,0.00022,2]
[324977919,1714488646237,-588.0,0.000221,2]
[324977921,1714488646247,-620.12198001,0.00022127,2]
[324977923,1714488646257,-150.0,0.0002218,2]
[324977925,1714488646266,-5000.0,0.000223,2]
[324977927,1714488646278,-151.48563567,0.00022455,2]
[324977929,1714488646289,-374.219733,0.00022466,2]
[324977931,1714488646298,-375.780267,0.00022466,2]
[324977933,1714488646307,-2000.0,0.000225,2]
[324977936,1714488646318,-2000.0,0.000225,2]
[324977938,1714488646327,-2000.0,0.000225,2]
[324977940,1714488646337,-214.82601298,0.000225,2]
[324977942,1714488646346,-2000.0,0.000225,2]
[324977944,1714488646358,-3002.4030076,0.000225,2]
[324977946,1714488646367,-10598.56422738,0.000225,2]
[324977948,1714488646377,-154.81422293,0.000225,2]
[324977950,1714488646386,-150.0,0.000225,2]
[324977952,1714488646395,-1000.0,0.000225,2]
[324977953,1714488646404,-1644.92645417,0.00023,2]
[324977955,1714488646414,-534.03330881,0.00023,2]
[324977957,1714488646424,-436.25,0.00023156,2]
[324977959,1714488646434,-150.0,0.00023156,2]
[324977961,1714488646443,-211.042,0.00023156,2]
[324977963,1714488646453,-620.006099,0.00023233,2]
[324977965,1714488646463,-150.0,0.000235,2]
[324977967,1714488646472,-1799.99632381,0.00023506,2]
[324977969,1714488646482,-150.0,0.0002353,2]
[324977971,1714488646491,-6148.92964259,0.000239,2]
[324977973,1714488646501,-693.45686249,0.00024,2]
[324977975,1714488646510,-620.00030495,0.00024395,2]
[324977978,1714488646520,-500.0,0.00024657,2]
[324977980,1714488646529,-500.0,0.00024657,2]
[324977982,1714488646539,-380.0,0.00024658,2]
[324977983,1714488646548,-200.0,0.00024658,2]
[324977986,1714488646557,-500.0,0.00024712,2]
[324977988,1714488646567,-500.0,0.00024767,2]
[324977990,1714488646575,-500.0,0.00024821,2]
[324977992,1714488646584,-500.0,0.00024876,2]
[324977994,1714488646593,-500.0,0.00024931,2]
[324977996,1714488646603,-500.0,0.00024986,2]
[324977998,1714488646612,-154.84515485,0.00025,2]
[324978000,1714488646622,-154.84515485,0.00025,2]
[324978002,1714488646631,-154.82968734,0.00025,2]
[324978004,1714488646641,-1836.20001103,0.00025,2]
[324978006,1714488646650,-1016.69173145,0.00025,2]
[324978008,1714488646659,-154.81422293,0.00025,2]
[324978010,1714488646671,-500.0,0.00025041,2]
[324978012,1714488646680,-500.0,0.00025095,2]
[324978014,1714488646689,-500.0,0.0002515,2]
[324978016,1714488646699,-500.0,0.00025205,2]
[324978018,1714488646708,-500.0,0.0002526,2]
[324978020,1714488646718,-500.0,0.00025315,2]
[324978022,1714488646728,-500.0,0.00025369,2]
[324978024,1714488646737,-500.0,0.00025424,2]
[324978025,1714488646748,-500.0,0.00025479,2]
[324978027,1714488646757,-500.0,0.00025534,2]
[324978030,1714488646767,-500.0,0.00025589,2]
[324978031,1714488646777,-620.00001525,0.00025615,2]
[324978033,1714488646787,-500.0,0.00025643,2]
[324978035,1714488646797,-500.0,0.00025698,2]
[324978038,1714488646806,-500.0,0.00025753,2]
[324978040,1714488646816,-500.0,0.00025808,2]
[324978042,1714488646826,-500.0,0.00025863,2]
[324978044,1714488646835,-150.0,0.00025912,2]
[324978046,1714488646845,-206.56888876,0.00025917,2]
[324978048,1714488646854,-417.0,0.00026156,2]
[324978049,1714488646863,-160.585066,0.00026388,2]
[324978051,1714488646873,-391.16491221,0.000266,2]
[324978053,1714488646883,-620.00000076,0.00026895,2]
[324978054,1714488646892,-8529.21181525,0.00027,2]
[324978055,1714488646901,-4153.80495904,0.00027,15]
[324978056,1714488646911,-166.666666,0.00027397,2]
[324978057,1714488646923,-516.200641,0.00027397,2]
[324978058,1714488646932,-516.200641,0.00027397,2]
[324978060,1714488646940,-516.200641,0.00027397,2]
[324978062,1714488646949,-516.200641,0.00027397,2]
[324978063,1714488646959,-516.200641,0.00027397,2]
[324978064,1714488646968,-516.200641,0.00027397,2]
[324978065,1714488646977,-516.200641,0.00027397,2]
[324978066,1714488646988,-516.200641,0.00027397,2]
[324978067,1714488646997,-516.200641,0.00027397,2]
[324978068,1714488647007,-516.200641,0.00027397,2]
[324978069,1714488647016,-516.200641,0.00027397,2]
[324978070,1714488647025,-516.200641,0.00027397,2]
[324978071,1714488647035,-516.200641,0.00027397,2]
[324978072,1714488647044,-516.200641,0.00027397,2]
[324978073,1714488647053,-516.200641,0.00027397,2]
[324978074,1714488647063,-516.200641,0.00027397,2]
[324978075,1714488647073,-516.200641,0.00027397,2]
[324978076,1714488647082,-516.200641,0.00027397,2]
[324978077,1714488647091,-516.200641,0.00027397,2]
[324978078,1714488647100,-516.200646,0.00027397,2]
[324978079,1714488647112,-154.81422293,0.000274,2]
[324978080,1714488647121,-836.9,0.00027749,5]
[324978081,1714488647131,-1799.99632381,0.00027992,3]
[324978082,1714488647140,-220.93587945,0.00028,2]
[324978083,1714488647150,-166.666666,0.00028038,2]
[324978084,1714488647160,-620.00000004,0.0002824,2]
[324978085,1714488647171,-374.219733,0.00028493,2]
[324978086,1714488647180,-199.419334,0.00028493,2]
[324978087,1714488647189,-199.419334,0.00028493,120]
[324978088,1714488647199,-375.780267,0.00028493,2]
[324978089,1714488647208,-166.666666,0.00028679,2]
[324978090,1714488647218,-836.9,0.00028808,5]
[324978091,1714488647227,-150.0,0.00028912,2]
[324978092,1714488647237,-205.0,0.00029,15]
[324978093,1714488647247,-417.0,0.00029156,2]
[324978094,1714488647256,-166.666666,0.00029321,2]
[324978095,1714488647265,-620.0,0.00029652,2]
[324978096,1714488647277,-836.9,0.00029867,5]
[324978097,1714488647290,-154.6275197,0.00029881,2]
[324978098,1714488647300,-250.0,0.000299,2]
[324978099,1714488647309,-250.0,0.000299,2]
[324978100,1714488647319,-250.0,0.000299,2]
[324978101,1714488647329,-250.0,0.000299,2]
[324978102,1714488647338,-166.666666,0.00029962,2]
[324978103,1714488647348,-150.5,0.0002998,35]
[324978104,1714488647359,-150.5,0.0002999,35]
[324978105,1714488647372,-154.84515485,0.0003,4]
[324978107,1714488647382,-1900.02434615,0.0003,4]
[324978109,1714488647391,-188.46262606,0.0003,4]
[324978111,1714488647400,-212.54437456,0.0003,4]
[324978113,1714488647410,-280.0,0.0003,2]
[324978115,1714488647421,-190.86959934,0.00030002,7]
[324978117,1714488647430,-157.73975449,0.00030293,7]
[324978119,1714488647439,-152.79752245,0.00030352,7]
[324978121,1714488647449,-154.6275197,0.0003058,7]
[324978123,1714488647458,-166.666666,0.00030603,2]
[324978125,1714488647467,-291.41384199,0.00030664,7]
[324978127,1714488647476,-153.21482083,0.0003067,7]
[324978128,1714488647485,-152.79752245,0.0003087,7]
[324978129,1714488647495,-836.9,0.00030926,7]
[324978130,1714488647504,-1121.66833623,0.00031,4]
[324978131,1714488647514,-1000.0,0.00031,31]
[324978132,1714488647524,-620.0,0.00031135,2]
[324978133,1714488647533,-157.73975449,0.00031148,7]
[324978134,1714488647544,-291.41384199,0.00031276,7]
[324978135,1714488647553,-166.98581,0.00031362,2]
[324978136,1714488647563,-153.21482083,0.00031424,7]
[324978137,1714488647573,-291.41384199,0.00031641,7]
[324978138,1714488647582,-500.0,0.0003178,2]
[324978139,1714488647591,-500.17725542,0.0003178,2]
[324978140,1714488647600,-500.0,0.0003178,2]
[324978141,1714488647609,-500.0,0.0003178,2]
[324978142,1714488647618,-500.27148347,0.0003178,2]
[324978143,1714488647628,-500.0,0.0003178,2]
[324978144,1714488647638,-184.7246913,0.0003178,2]
[324978145,1714488647647,-500.0,0.0003178,2]
[324978146,1714488647657,-500.0,0.0003178,2]
[324978147,1714488647669,-500.0,0.0003178,2]
[324978148,1714488647678,-1076.15,0.0003178,2]
[324978149,1714488647688,-500.0,0.0003178,2]
[324978150,1714488647697,-500.0,0.0003178,2]
[324978151,1714488647707,-500.0,0.0003178,2]
[324978152,1714488647717,-500.0,0.0003178,2]
[324978153,1714488647727,-500.0,0.0003178,2]
[324978154,1714488647736,-500.0,0.0003178,2]
[324978155,1714488647745,-500.0,0.0003178,2]
[324978156,1714488647755,-500.0,0.0003178,2]
[324978157,1714488647764,-500.0,0.0003178,2]
[324978158,1714488647774,-500.0,0.0003178,2]
[324978159,1714488647783,-500.0,0.0003178,2]
[324978160,1714488647793,-500.0,0.0003178,2]
[324978161,1714488647802,-500.0,0.0003178,2]
[324978162,1714488647811,-500.0,0.0003178,2]
[324978163,1714488647825,-490.93104545,0.0003178,2]
[324978164,1714488647834,-500.0,0.0003178,2]
[324978165,1714488647844,-500.0,0.0003178,2]
[324978166,1714488647854,-500.0,0.0003178,2]
[324978167,1714488647863,-500.0,0.0003178,2]
[324978168,1714488647872,-500.0,0.0003178,2]
[324978169,1714488647882,-500.0,0.0003178,2]
[324978170,1714488647892,-500.0,0.0003178,2]
[324978171,1714488647902,-500.0,0.0003178,2]
[324978172,1714488647911,-500.0,0.0003178,2]
[324978173,1714488647922,-452.13941649,0.0003178,2]
[324978174,1714488647931,-500.0,0.0003178,2]
[324978175,1714488647940,-500.0,0.0003178,2]
[324978176,1714488647951,-428.65565748,0.0003178,2]
[324978177,1714488647962,-500.0,0.0003178,2]
[324978178,1714488647971,-500.0,0.0003178,2]
[324978179,1714488647982,-500.0,0.0003178,2]
[324978180,1714488647992,-500.0,0.0003178,2]
[324978181,1714488648002,-500.0,0.0003178,2]
[324978182,1714488648013,-353.95625863,0.0003178,2]
[324978183,1714488648024,-500.0,0.0003178,2]
[324978184,1714488648035,-500.0,0.0003178,2]
[324978185,1714488648045,-1091.08,0.0003178,2]
[324978186,1714488648055,-1091.08,0.0003178,2]
[324978187,1714488648064,-1091.08,0.0003178,2]
[324978188,1714488648074,-1091.08,0.0003178,2]
[324978189,1714488648084,-1091.08,0.0003178,2]
[324978190,1714488648093,-1091.08,0.0003178,2]
[324978191,1714488648103,-1091.08,0.0003178,2]
[324978192,1714488648114,-1091.08,0.0003178,2]
[324978193,1714488648124,-1091.08,0.0003178,2]
[324978194,1714488648134,-1091.08,0.0003178,2]
[324978195,1714488648144,-1091.08,0.0003178,2]
[324978196,1714488648154,-1091.08,0.0003178,2]
[324978197,1714488648167,-1091.08,0.0003178,2]
[324978198,1714488648177,-1091.08,0.0003178,2]
[324978199,1714488648186,-1091.08,0.0003178,2]
[324978200,1714488648195,-1091.08,0.0003178,2]
[324978201,1714488648205,-1091.08,0.0003178,2]
[324978202,1714488648215,-1091.08,0.0003178,2]
[324978203,1714488648224,-500.0,0.0003178,2]
[324978204,1714488648234,-500.0,0.0003178,2]
[324978205,1714488648244,-201.13962678,0.0003178,2]
[324978206,1714488648253,-500.0,0.0003178,2]
[324978207,1714488648263,-500.0,0.0003178,2]
[324978208,1714488648273,-500.0,0.0003178,2]